Cogmind - Beta 13 @@@ ROGUE MODE // 2024.05.22 @ 18:52:53 Player: kupcio12 Result: Destroyed by G-47 Trooper with Particle Gun Performance ------------- Evolutions (2) 1000 Regions Visited (5) 1000 Robots Destroyed (41) 205 Value Destroyed (1201) 1201 Prototype IDs (7) 140 Alien Tech Used (0) 0 Bonus (179) 179 TOTAL SCORE: 3725 Bonus ------- High Alert Combat Kills 13 Follower Combat Kills 49 Aligned with FarCom 300 Friendly Fire -183 Cogmind --------- Core Integrity 0/550 Matter 69/300 Energy 1599/1600 System Corruption 2% Temperature Cool (9) Movement Core (150) Ox2 Location -8/Materials Parts ------- > --- POWER (1) -------- (None) > --- PROPULSION (2) --- (None) > --- UTILITY (4) ------ Superbattery > --- WEAPON (4) ------- Minigun > --- INVENTORY (5) ---- Ion Engine Heat Sink Improved Heat Sink Improved Heat Sink Peak State ------------ > --- POWER ------------ Light Nuclear Core > --- PROPULSION ------- Wheel Wheel > --- UTILITY ---------- Humpback Superbattery 0b10 Alert Chip > --- WEAPON ----------- Light Cannon Assault Cannon Slug Cannon Rocket Launcher > --- INVENTORY -------- Ion Engine Ion Engine Large Storage Unit Large Storage Unit Medium Matter Pod Targeting Computer Targeting Computer High-powered Shotgun High-powered Shotgun High-powered Shotgun Light Cannon Light Cannon Light Cannon Grenade Launcher Grenade Launcher [Rating: 35] Favorites ----------- Power Light Nuclear Core Engine Light Ion Engine Power Core Light Nuclear Core Propulsion Wheel Treads Light Treads Wheel Wheel Utility Large Storage Unit Device Improved Heat Sink Storage Large Storage Unit Processor Targeting Computer Protection Weapon Shielding Weapon Light Cannon Energy Gun Medium Laser Energy Cannon Heavy Particle Cannon Ballistic Gun Light Assault Rifle Ballistic Cannon Light Cannon Launcher Rocket Launcher Build | -11 -10 -10 -10 -9 -8 ------- Run | Yrd Mat Min Exi Min Mat Slots Evolved 4 | . . . . . 4 Power . | . . . . . . Propulsion . | . . . . . . Utility 2 | . . . . . 2 Weapon 2 | . . . . . 2 Parts Attached 51 | 10 10 8 2 1 20 Power 7 | 1 2 3 . . 1 Engine 6 | 1 2 2 . . 1 Core 1 | . . 1 . . . Reactor . | . . . . . . Propulsion 14 | 6 1 4 . . 3 Treads 4 | 2 1 1 . . . Leg . | . . . . . . Wheel 10 | 4 . 3 . . 3 Hover . | . . . . . . Flight . | . . . . . . Utility 15 | 1 4 1 1 1 7 Device 3 | . 1 . . . 2 Storage 8 | 1 2 . 1 1 3 Processor 2 | . . 1 . . 1 Hackware . | . . . . . . Protection 2 | . 1 . . . 1 Artifact . | . . . . . . Weapon 15 | 2 3 . 1 . 9 Energy Gun 2 | . 1 . . . 1 Energy Cannon 1 | . . . . . 1 Ballistic Gun 6 | 2 . . . . 4 Ballistic Cannon 5 | . 2 . 1 . 2 Launcher 1 | . . . . . 1 Special Weapon . | . . . . . . Impact Weapon . | . . . . . . Slashing Weapon . | . . . . . . Piercing Weapon . | . . . . . . Special Melee Weapon . | . . . . . . Unidentified Prototypes 2 | . . . 1 . 1 Parts Lost 17 | . 4 3 . . 10 Power 3 | . 1 1 . . 1 Propulsion 7 | . 1 1 . . 5 Utility 3 | . 1 1 . . 1 Weapon 4 | . 1 . . . 3 Highest Loss Streak 4 | . 4 2 . . 3 To Critical Strikes . | . . . . . . Average Slot Usage (%) 89 | . 92 95 100 100 73 Engine 4 | . 12 10 . . 1 Core 6 | . . 2 14 14 5 Treads 5 | . 9 18 . . . Wheel 18 | . 18 9 28 28 15 Device 1 | . 4 . . . 3 Storage 18 | . 14 14 23 28 16 Processor 1 | . . 1 4 . 1 Protection 3 | . 6 9 . . . Ballistic Gun 2 | . 13 . . . . Ballistic Cannon 22 | . 11 28 28 28 20 Launcher 2 | . . . . . 6 Naked Turns . | . . . . . . Heaviest Build 235 | 10 30 31 39 39 235 Greatest Support 40 | 40 20 40 20 20 20 Greatest Overweight (x) 23 | . 2 2 1 1 23 Average Overweight (x) 2 | . 1 . 1 1 7 Largest Inventory Capacity 35 | 8 15 15 15 15 35 Average Capacity 18 | 6 14 15 15 15 29 Most Carried 22 | 5 15 15 15 15 22 Average Carried 14 | 2 11 14 14 15 15 Final Capacity 15 | 8 15 15 15 15 5 Final Carried 15 | 5 15 15 15 15 4 Class Distribution -------------------- 74% | Mutant 23% | Hauler-Skirmisher Dominant Class ---------------- Mutant | -10/Materials Mutant | -10/Mines Mutant | -10/Exiles Mutant | -9/Mines Hauler-Skirmisher | -8/Materials Resources | -11 -10 -10 -10 -9 -8 ----------- Run | Yrd Mat Min Exi Min Mat Matter Collected 1484 | 232 277 274 . 105 596 Remotely . | . . . . . . Salvage Created 1117 | . 270 143 . . 704 Parts 69 | . 15 15 . . 39 Haulers Intercepted . | . . . . . . Recyclers Shooed . | . . . . . . Parts Field Recycled . | . . . . . . Retrieved Matter . | . . . . . . Parts Self-Destructed . | . . . . . . Prevented . | . . . . . . Kills | -11 -10 -10 -10 -9 -8 ------- Run | Yrd Mat Min Exi Min Mat Combat Hostiles Destroyed 28 | . 6 9 . . 13 Guns 7 | . 5 . . . 2 Cannons 16 | . 1 9 . . 6 AOE 5 | . . . . . 5 Classes Destroyed 11 | . 2 3 . . 6 Worker 1 | . . 1 . . . Builder 4 | . . . . . 4 Tunneler 2 | . . 1 . . 1 Recycler 2 | . . . . . 2 Watcher 2 | . 1 . . . 1 Swarmer 5 | . . 5 . . . Grunt 17 | . 6 4 . . 7 Duelist 1 | . . . . . 1 Sentry 4 | . . . . . 4 Hunter 1 | . . . . . 1 Zionite 1 | . . . . . 1 Thug 1 | . . . . . 1 Best Kill Streak 5 | . 2 4 . . 5 Combat Bots Only 3 | . 2 3 . . 3 Max Kills in Single Turn 4 | . 1 2 . . 4 Gunslinging . | . . . . . . Exploded 1 | . . . . . 1 Melee . | . . . . . . Uniques/NPCs Destroyed . | . . . . . . Combat | -11 -10 -10 -10 -9 -8 -------- Run | Yrd Mat Min Exi Min Mat Hostile Shots Fired 256 | . 52 61 . 2 141 Missed 71 | . 10 15 . . 46 Damage Taken 2977 | . 553 497 . 16 1911 Core 791 | . 144 90 . 6 551 Absorbed by Shields . | . . . . . . Redirected to Shielding 51 | . 6 45 . . . Core Remaining (%) 52 | 100 . . . 4 . Volleys Fired 127 | . 39 28 . . 60 Largest 4 | . 2 2 . . 4 Hottest 160 | . 70 70 . . 160 Shots Fired 266 | . 74 56 . . 136 Gun 105 | . 64 . . . 41 Cannon 144 | . 10 56 . . 78 Launcher 17 | . . . . . 17 Special . | . . . . . . Kinetic 227 | . 69 56 . . 102 Thermal 22 | . 5 . . . 17 Explosive 17 | . . . . . 17 Electromagnetic . | . . . . . . Robot Hit Streak 24 | . 24 11 . . 4 Robot Miss Streak 5 | . 2 4 . . 5 Penetration Max 1 | . . . . . 1 Secondary Targets . | . . . . . . Shots Hit Robots 154 | . 56 31 . . 67 Core Hits 76 | . 18 13 . . 45 Critical Kills . | . . . . . . Critical Parts Destroyed 1 | . . . . . 1 Critical Strikes 4 | . . . . . 4 Destroy 1 | . . . . . 1 Blast 3 | . . . . . 3 Melee Attacks . | . . . . . . Impact . | . . . . . . Slashing . | . . . . . . Piercing . | . . . . . . Sneak Attacks . | . . . . . . Combat Hostiles . | . . . . . . Follow-up Attacks . | . . . . . . Damage Inflicted 3358 | . 505 629 . . 2224 Guns 861 | . 432 . . . 429 Cannons 1618 | . 73 610 . . 935 Explosions 857 | . . . . . 857 Melee . | . . . . . . Ramming 22 | . . 19 . . 3 Kinetic 2210 | . 455 610 . . 1145 Thermal 269 | . 50 . . . 219 Explosive 857 | . . . . . 857 Electromagnetic . | . . . . . . Impact . | . . . . . . Slashing . | . . . . . . Piercing . | . . . . . . Highest Corruption 2 | . . . . . 2 Average Corruption 2 | . . . . . 2 Corruption Purged . | . . . . . . Corruption Blocked . | . . . . . . Overload Shots . | . . . . . . Overflow Damage 44 | . . . . . 44 Projectiles 36 | . . . . . 36 Explosions 8 | . . . . . 8 Melee . | . . . . . . Knockbacks 11 | . 1 6 . . 4 Impact . | . . . . . . Kinetic 11 | . 1 6 . . 4 Secondary . | . . . . . . Self-Inflicted Damage 47 | . . 9 . . 38 Shots 2 | . . . . . 2 Rammed 3 | . . 2 . . 1 Targets Rammed 3 | . . 2 . . 1 Kicked . | . . . . . . Crushed . | . . . . . . Highest Temperature 478 | . 45 183 . . 478 Average Temperature 79 | . 17 56 . . 112 Received Heat Transfer 1233 | . 324 153 . . 756 Effects 5 | . . . . . 5 Shutdowns 1 | . . . . . 1 Matter Decay 1 | . . . . . 1 Short Circuit 1 | . . . . . 1 Damage (major) 2 | . . . . . 2 Siege Activations . | . . . . . . Robots Corrupted . | . . . . . . Combat Hostiles . | . . . . . . Parts Fried . | . . . . . . Impact Corruptions . | . . . . . . Robots Melted . | . . . . . . Combat Hostiles . | . . . . . . Parts Melted . | . . . . . . Heat Transferred 555 | . 148 . . . 407 Parts Sabotaged . | . . . . . . Parts Stolen . | . . . . . . Parts Stripped . | . . . . . . Power Chain Reactions . | . . . . . . Alert | -11 -10 -10 -10 -9 -8 ------- Run | Yrd Mat Min Exi Min Mat Peak Influence 433 | . 208 120 . 100 433 Initial 39 | . . 25 . . 39 Average 119 | . 84 94 . 40 212 Maximum Alert Level 2 | . 1 . . . 2 Low Security (%) 78 | 100 92 100 . 100 43 Level 1 17 | . 7 . . . 47 Level 2 3 | . . . . . 9 Level 3 . | . . . . . . Level 4 . | . . . . . . Level 5 . | . . . . . . High Security . | . . . . . . Max Security . | . . . . . . Squads Dispatched 5 | . 2 . . . 3 Investigation 2 | . 1 . . . 1 Extermination . | . . . . . . Reinforcement 3 | . 1 . . . 2 Assault . | . . . . . . Garrison . | . . . . . . Intercept . | . . . . . . Searches Triggered . | . . . . . . Construction Impeded 1 | . . . . . 1 Haulers Reinforced . | . . . . . . Active Scanning Responses . | . . . . . . Cargo Convoy Interrupts . | . . . . . . Stealth | -11 -10 -10 -10 -9 -8 --------- Run | Yrd Mat Min Exi Min Mat Distress Signals 4 | . 1 . . . 3 Communications Jammed . | . . . . . . Distress Signals . | . . . . . . Times Spotted 51 | . 13 10 . 4 24 Peak Tracking Total 5 | . 5 3 . 4 5 Tactical Retreats 3 | . 1 . . . 2 Traps | -11 -10 -10 -10 -9 -8 ------- Run | Yrd Mat Min Exi Min Mat Traps Triggered 2 | . 1 . . . 1 Indirectly . | . . . . . . Trap Hack Attempts . | . . . . . . Triggered . | . . . . . . Disarmed . | . . . . . . Reprogrammed . | . . . . . . Reused . | . . . . . . Traps Extracted . | . . . . . . Installed . | . . . . . . Triggered . | . . . . . . Machines | -11 -10 -10 -10 -9 -8 ---------- Run | Yrd Mat Min Exi Min Mat Machines Disabled 6 | . . . . . 6 Max in Single Turn 1 | . . . . . 1 Machines Repaired . | . . . . . . Machines Dismantled . | . . . . . . Machines Sabotaged . | . . . . . . Overloaded Fab Kills . | . . . . . . Hacking | -11 -10 -10 -10 -9 -8 --------- Run | Yrd Mat Min Exi Min Mat Machines Accessed 11 | . 6 1 2 . 2 Terminals 7 | . 5 . . . 2 Fabricators . | . . . . . . Repair Stations . | . . . . . . Recycling Units 1 | . 1 . . . . Scanalyzers . | . . . . . . Garrison Access . | . . . . . . Total Hacks 41 | . 19 1 14 . 7 Successful 26 | . 7 1 14 . 4 Failed 15 | . 12 . . . 3 Catastrophic 2 | . 2 . . . . Database Lockouts . | . . . . . . Manual 2 | . 1 . 1 . . Terminals 23 | . 16 . . . 7 Fabricators . | . . . . . . Repair Stations . | . . . . . . Recycling Units 3 | . 3 . . . . Scanalyzers . | . . . . . . Garrison Access . | . . . . . . Terminal Hacks 25 | . 6 1 14 . 4 Record 14 | . . . 14 . . Prototype ID Bank 3 | . 1 . . . 2 Open Door 1 | . . 1 . . . Emergency Access Points 1 | . 1 . . . . Locate Traps 2 | . 1 . . . 1 Maintenance Status 1 | . . . . . 1 Surveillance Status 1 | . 1 . . . . Recall Investigation 1 | . 1 . . . . Hauler Manifests 1 | . 1 . . . . Fabricator Hacks . | . . . . . . Repair Station Hacks . | . . . . . . Recycling Unit Hacks 1 | . 1 . . . . Retrieve Components 1 | . 1 . . . . Scanalyzer . | . . . . . . Garrison Access Hacks . | . . . . . . Unauthorized Hacks . | . . . . . . Terminals . | . . . . . . Fabricators . | . . . . . . Repair Stations . | . . . . . . Recycling Units . | . . . . . . Scanalyzers . | . . . . . . Garrison Access . | . . . . . . Data Cores Recovered . | . . . . . . Used . | . . . . . . Hacking Detections 8 | . 6 . . . 2 Full Trace Events 2 | . 1 . . . 1 Feedback Events . | . . . . . . Feedback Blocked . | . . . . . . Robot Schematics Acquired . | . . . . . . Robots Built . | . . . . . . Authchips . | . . . . . . Time . | . . . . . . Total Robot Build Rating . | . . . . . . Part Schematics Acquired . | . . . . . . Parts Built . | . . . . . . Authchips . | . . . . . . Time . | . . . . . . Total Part Build Rating . | . . . . . . Parts Repaired . | . . . . . . Time . | . . . . . . Parts Recycled . | . . . . . . Recycled Matter . | . . . . . . Retrieved Matter . | . . . . . . Retrieved Components 1 | . 1 . . . . Parts Scanalyzed . | . . . . . . Part Schematics Acquired . | . . . . . . Parts Damaged . | . . . . . . Bothacking | -11 -10 -10 -10 -9 -8 ------------ Run | Yrd Mat Min Exi Min Mat Used RIF Installer . | . . . . . . Robots Hacked . | . . . . . . Non-combat . | . . . . . . Combat . | . . . . . . Robot Hacks Applied . | . . . . . . Relay Couplers Released . | . . . . . . Fabnet Peak Effective % . | . . . . . . Robots Rewired . | . . . . . . Allies Hacked . | . . . . . . Hacks Repelled . | . . . . . . Allies | -11 -10 -10 -10 -9 -8 -------- Run | Yrd Mat Min Exi Min Mat Total Allies 3 | . . . . 3 . Largest Group 3 | . . . . 3 2 Highest-Rated Group 80 | . . . . 80 46 Highest-Rated Ally 31 | . . . . 31 28 Total Orders . | . . . . . . Ally Attacks 20 | . . . . 14 6 Total Damage 295 | . . . . 208 87 Kills 7 | . . . . 7 . Allies Corrupted . | . . . . . . Allies Melted . | . . . . . . Intel | -11 -10 -10 -10 -9 -8 ------- Run | Yrd Mat Min Exi Min Mat Robot Analysis Total . | . . . . . . Derelict Logs Recovered 3 | . . 2 . 1 . Drone Launches . | . . . . . . Drone Recoveries . | . . . . . . Exploration | -11 -10 -10 -10 -9 -8 ------------- Run | Yrd Mat Min Exi Min Mat Turns Passed 3320 | 71 559 650 397 630 1013 Spaces Moved 1952 | 53 382 390 301 462 364 Core 46 | 4 . . . . 42 Treads 201 | 11 5 185 . . . Legs . | . . . . . . Wheels 1705 | 38 377 205 301 462 322 Hover . | . . . . . . Flight . | . . . . . . Fastest Speed 50 | 50 80 95 95 95 80 Average Speed 121 | 94 102 127 95 95 192 Slowest Speed 450 | 160 240 160 95 95 450 Overloaded Moves . | . . . . . . Propulsion Burnouts . | . . . . . . Robots Hopped . | . . . . . . Cave-ins Triggered . | . . . . . . Exploration Rate (%) 51 | 4 55 69 63 83 32 Regions Visited 5 Branch Regions 3 Pre-discovered Areas 1 | . . 1 . . . Known Exits Taken . | . . . . . . Unknown Exits Taken 5 | 1 1 1 1 1 . Scrap Searched 3 | . . 1 . 2 . Spaces Dug . | . . . . . . Terrain Destroyed 200 | . . . . . 200 Melee . | . . . . . . Projectile 16 | . . . . . 16 AOE 184 | . . . . . 184 Terrain Rammed . | . . . . . . Walls Destroyed . | . . . . . . Machines Disabled . | . . . . . . Actions | -11 -10 -10 -10 -9 -8 --------- Run | Yrd Mat Min Exi Min Mat Total 2686 | 68 487 486 412 653 580 Wait 491 | 1 32 49 104 190 115 Move 1947 | 52 381 389 300 461 364 Hop . | . . . . . . Pick Up 35 | 5 16 3 2 . 9 Fast Attach 25 | 6 4 4 1 1 9 Attach 14 | . 3 2 . . 9 Detach 9 | . 1 2 1 . 5 Swap 12 | 4 3 2 1 . 2 Drop 23 | . 8 5 3 1 6 Fire 127 | . 39 28 . . 60 Melee . | . . . . . . Ram 3 | . . 2 . . 1 Kick . | . . . . . . Crush . | . . . . . . Escape Stasis . | . . . . . . Rewire . | . . . . . . Trap . | . . . . . . Miscellaneous . | . . . . . . Route ------- -11/Scrapyard -10/Materials (discovered 2 exits: [*Mat] / *Min) -10/Mines (discovered 2 exits: [*Mat] / *Exi) -10/Exiles -9/Mines -8/Materials (discovered 1 exit: Fac) History --------- Turn | Location | Event 2 | -11/Scrapyard | Met Revision 17 14 | -11/Scrapyard | Discovered new exit (range 16) 72 | -11/Scrapyard | Entered Materials 285 | -10/Materials | Core integrity fell below 50% 313 | -10/Materials | Lost 4 parts (1p1n1u1w) 317 | -10/Materials | Build established: Mutant 446 | -10/Materials | Discovered new exit (range 7) 490 | -10/Materials | Discovered new exit (range 16) 631 | -10/Materials | Entered Mines 791 | -10/Mines | Learned Materials trap positions 840 | -10/Mines | Discovered new exit (range 4) 859 | -10/Mines | Met a Derelict who couldn't figure out how to use a Trap Extractor 1054 | -10/Mines | Core integrity fell below 20% 1198 | -10/Mines | Received a Rocket Launcher from a helpful Derelict 1222 | -10/Mines | A weapon hastily lodged in a ceiling crevice suddenly fell to the ground 1276 | -10/Mines | Deemed a non-threat by the Exiles lab entrance 1277 | -10/Mines | Discovered new exit (range 5) 1281 | -10/Mines | Entered Exiles 1304 | -10/Exiles | Met 8R-AWN 1320 | -10/Exiles | Met EX-HEX 1352 | -10/Exiles | Met EX-BIN 1367 | -10/Exiles | Aligned with FarCom system 1368 | -10/Exiles | Given EX-Vault access code 1404 | -10/Exiles | Opened EX-Vault 1417 | -10/Exiles | Found Prototype Storage 1417 | -10/Exiles | Identified Superbattery 1530 | -10/Exiles | Found Prototype Processor 1551 | -10/Exiles | Warned to stay clear of 0b10 Research branches 1581 | -10/Exiles | Met EX-DEC 1638 | -10/Exiles | Discovered new exit (range 14) 1678 | -10/Exiles | Stole two prototypes: Superbattery, 0b10 Alert Chip 1678 | -10/Exiles | Entered Mines 1722 | -9/Mines | Received a Mining Laser from a helpful Derelict 2172 | -9/Mines | Learned location of 1 exit from Materials 2278 | -9/Mines | Discovered new exit (range 3) 2308 | -9/Mines | Entered Materials 2308 | -8/Materials | Accompanied by 2 allies 2308 | -8/Materials | Evolved 4 slots: Utility x2, Weapon x2 2308 | -8/Materials | Identified 0b10 Alert Chip 2309 | -8/Materials | Identified exit to Factory 2310 | -8/Materials | Loaded intel: 26 trap records 2313 | -8/Materials | Led the pair of lost Derelicts to an unsafe place 2640 | -8/Materials | Build established: Hauler-Skirmisher 3109 | -8/Materials | Lost 3 parts (1p1n1u) 3153 | -8/Materials | Lost 3 parts (3w) 3256 | -8/Materials | Core integrity fell below 50% 3297 | -8/Materials | Core integrity fell below 20% 3321 | -8/Materials | Destroyed by G-47 Trooper with Particle Gun Last Messages --------------- the area. 03266_ Proton Bomb Trap short circuited. 03266_ A bubble of electromagnetic force engulfs the area. 03266_ Proton Bomb Trap short circuited. 03266_ A bubble of electromagnetic force engulfs the area. 03268_ R-06 Scavenger collects Lgt. Cannon. 03268_ K-01 Serf collects debris. 03271_ R-06 Scavenger collects Lgt. Nuclear Core. 03285_ Acquired Humpback. 03287_ Dropped Humpback. 03289_ Acquired 2 matter. 03290_ Acquired 4 matter. 03291_ Acquired 5 matter. 03292_ Acquired 76 matter. 03304_ G-47 Trooper destroyed. 03311_ R-06 Scavenger collects Aluminum Leg. 03313_ R-06 Scavenger destroyed. Map ----- +----------------------------------------------------+ | ??????????????????????????????# ## # # | | ??????????????????????????????# #####+ | | ??????????????????????????????# # | | ??????????????????????????????# ! " | | ????????????????# ??????????# ! | | ????????????????# ??????????# " ###+## | | ????????????????# ##+???????# "" # ## | | ??????????????^?# ???????#!! " ## ## | | ??????????^?????# ???????#!! ## ## | | ??????????^?^?^?# ???????### ###### ## """ | | ???????????^????# #????????##???# ## """ | | ????????????????# ###???######### ## """ | | ?????????????+### ######## #### ## | | ???????????? % ## | | ?????????? ####### | | ?????????# w * #????? | | ?????????# #?#### #######+###!== ### ###????? | | ?????????#g #????## # w ##%!|#########?????? | | ?????????# #????#### """ |## ^ ##! #?????? | | ?????????+ #???????# """" ## ## ][ #?????? | | ?????????# #???????# """"%%=## ## [[[ *#?????? | | ?????????# ###?????# """"%%=## ## ! #?????? | | ???????### # #?????# ""%%m%=## ## = #?????? | | ???##### ##????# "%%%g%[## ##! = #?????? | | ??? ######## "%%%%* # * ###/########## | | ?? H + %@ ]!#*[ | | ????? % #############;###!] | | ????????# ##?## !#?# | | ????????## +" "#### """ #?# ###+########## | | ????????#s = " """ ! #?####### ???????? | | ????????# # """ #???????# #?????? | | ????????# """ """ / " " #???????# """ #?????? | | ????????#s""" """ # "R" #???????# """ #?????? | | ????????#s""" """ # ! """ #???????# """ #?????? | | ????????# s # #???????# #?????? | | ????????# / ####+######???????########?????? | | ????????# = #??????????????????????????????? | | ????????###########??????????????????????????????? | | ?????????????????????????????????????????????????? | | ?????????????????????????????????????????????????? | | ?????????????????????????????????????????????????? | | ?????????????????????????????????????????????????? | | ?????????????????????????????????????????????????? | | ?????????????????????????????????????????????????? | | ?????????????????????????????????????????????????? | | ?????????????????????????????????????????????????? | | ?????????????????????????????????????????????????? | | ?????????????????????????????????????????????????? | | ?????????????????????????????????????????????????? | | ?????????????????????????????????????????????????? | +----------------------------------------------------+ Best States ------------- Heat Dissipation 45 Energy Generation 14 Energy Capacity 1775 Matter Stores 300 Matter Capacity 300 Sight Range 16 Terrain Scan Density 10 Armor Coverage 225 Weapon Shielding 33 Evasion (%) 44 Targeting Accuracy 5 Recoil Reduction 2 Item Schematics ----------------- None Robot Schematics ------------------ None Fabricated ------------ Nothing Alien Tech Used ----------------- None Achievements -------------- Close Call Challenges ------------ None Game ------ Seed TransportMiningAutocannon Manual? 0 Play Time 00:32:49 Cumulative 12.3 hours Start 2024.05.22 @ 18:20:28 End 2024.05.22 @ 18:52:53 Sessions 1 Manual Loads 0 Difficulty Rogue Special Mode None Game No. 10 Rogue 5 Adventurer 5 Explorer 0 Win Type - Total 0 Types 0/0/0/0/0/0/0/0/0 Lore% 18 Gallery% 19 Achievement% 24 Wizard Run 0 Options --------- Layout 1 ASCII 0 Keyboard 1 Movement Numpad Keybinds 0 Fullscreen 1 Font 20/SmallcapsGlow Map View 25x17 Zoom Use 81% Tactical HUD 1 Map Filters NONE Filters NONE Steam X RUN: 2bbc5690-fad5-4570-a715-c6366ebb4882